[Event "*** Titled Tuesday Blitz"]
[Site "Chess.com"]
[Date "2020.05.19"]
[Round "3"]
[White "Hydrargyrum_Girl"]
[Black "H3nriqueTV"]
[Result "0-1"]
[WhiteElo "2298"]
[BlackElo "2113"]
[TimeControl "180+1"]
[EndTime "12:29:26 PDT"]
[Termination "H3nriqueTV won on time"]

1. d4 {[%clk 0:03:00.9]} 1... d5 {[%clk 0:02:58.5]} 2. Nc3 {[%clk 0:03:00.9]}
2... Bf5 {[%clk 0:02:53.8]} 3. Bg5 {[%clk 0:03:00.1]} 3... c6 {[%clk 0:02:49.8]}
4. e3 {[%clk 0:02:59.4]} 4... Nf6 {[%clk 0:02:46.1]} 5. Bd3 {[%clk 0:02:59.2]}
5... Bg6 {[%clk 0:02:45.8]} 6. f4 {[%clk 0:02:58.9]} 6... Nbd7 {[%clk
0:02:44.2]} 7. Nf3 {[%clk 0:02:58.5]} 7... Ne4 {[%clk 0:02:35.6]} 8. Bxe4 {[%clk
0:02:54.9]} 8... dxe4 {[%clk 0:02:35.6]} 9. Ne5 {[%clk 0:02:17.1]} 9... Nxe5
{[%clk 0:02:30.9]} 10. fxe5 {[%clk 0:02:16.9]} 10... Qb6 {[%clk 0:02:30.8]} 11.
Rb1 {[%clk 0:02:11.9]} 11... e6 {[%clk 0:02:30.7]} 12. O-O {[%clk 0:02:10.2]}
12... Bb4 {[%clk 0:02:21.4]} 13. Ne2 {[%clk 0:01:56.5]} 13... Qc7 {[%clk
0:02:16.1]} 14. Ng3 {[%clk 0:01:53.9]} 14... Be7 {[%clk 0:02:14.6]} 15. Qg4
{[%clk 0:01:44.8]} 15... Bxg5 {[%clk 0:02:13.2]} 16. Qxg5 {[%clk 0:01:44]} 16...
c5 {[%clk 0:02:06.6]} 17. c3 {[%clk 0:01:38.8]} 17... cxd4 {[%clk 0:02:02.4]}
18. exd4 {[%clk 0:01:37.6]} 18... O-O {[%clk 0:01:52.5]} 19. Rf4 {[%clk
0:01:16]} 19... e3 {[%clk 0:01:41.2]} 20. Re1 {[%clk 0:01:14.5]} 20... Qb6
{[%clk 0:01:38.1]} 21. b3 {[%clk 0:01:08.9]} 21... Qa5 {[%clk 0:01:35.7]} 22.
Rxe3 {[%clk 0:01:00.7]} 22... Qxa2 {[%clk 0:01:35]} 23. b4 {[%clk 0:00:53.1]}
23... Rac8 {[%clk 0:01:32.2]} 24. h4 {[%clk 0:00:29.5]} 24... Qd2 {[%clk
0:01:17.8]} 25. Rff3 {[%clk 0:00:25.5]} 25... h6 {[%clk 0:00:47.2]} 26. Qg4
{[%clk 0:00:22.1]} 26... a5 {[%clk 0:00:46]} 27. bxa5 {[%clk 0:00:21.2]} 27...
Ra8 {[%clk 0:00:44.5]} 28. h5 {[%clk 0:00:21]} 28... Bh7 {[%clk 0:00:44]} 29.
Ne4 {[%clk 0:00:19.7]} 29... Bf5 {[%clk 0:00:43.5]} 30. Rxf5 {[%clk 0:00:11.3]}
30... Qxe3+ {[%clk 0:00:43.1]} 31. Rf2 {[%clk 0:00:10.2]} 31... Rxa5 {[%clk
0:00:40.8]} 32. Kh2 {[%clk 0:00:10]} 32... Ra1 {[%clk 0:00:22.3]} 33. Rf3 {[%clk
0:00:07.9]} 33... Qg1+ {[%clk 0:00:20.6]} 34. Kg3 {[%clk 0:00:08.1]} 34... Qe1+
{[%clk 0:00:20]} 35. Kh2 {[%clk 0:00:07.2]} 35... Qh1+ {[%clk 0:00:20]} 36. Kg3
{[%clk 0:00:07.3]} 36... Qe1+ {[%clk 0:00:19.4]} 37. Kh3 {[%clk 0:00:04.7]}
37... Qc1 {[%clk 0:00:16.2]} 38. Nf6+ {[%clk 0:00:02.6]} 38... Kh8 {[%clk
0:00:15.9]} 39. Ne4 {[%clk 0:00:02.8]} 39... Rb1 {[%clk 0:00:09.3]} 40. Nf2
{[%clk 0:00:02.1]} 40... Qg5 {[%clk 0:00:08.1]} 41. Qxg5 {[%clk 0:00:02]} 41...
hxg5 {[%clk 0:00:09]} 42. Ne4 {[%clk 0:00:02.2]} 42... f6 {[%clk 0:00:09.6]} 43.
exf6 {[%clk 0:00:02]} 43... gxf6 {[%clk 0:00:09]} 44. Nxf6 {[%clk 0:00:02.2]}
44... Kg7 {[%clk 0:00:09]} 45. h6+ {[%clk 0:00:01.6]} 45... Kg6 {[%clk
0:00:08.2]} 0-1

[Event "*** Titled Tuesday Blitz"]
[Site "Chess.com"]
[Date "2020.05.19"]
[Round "3"]
[White "vaishali2001"]
[Black "GHANDEEVAM2003"]
[Result "0-1"]
[WhiteElo "2634"]
[BlackElo "2915"]
[TimeControl "180+1"]
[EndTime "12:29:30 PDT"]
[Termination "GHANDEEVAM2003 won on time"]

1. e4 {[%clk 0:03:00.9]} 1... c5 {[%clk 0:02:59.9]} 2. Nf3 {[%clk 0:02:58.7]}
2... d6 {[%clk 0:03:00]} 3. Bb5+ {[%clk 0:02:57.1]} 3... Nd7 {[%clk 0:02:58.8]}
4. O-O {[%clk 0:02:56.4]} 4... a6 {[%clk 0:02:58.1]} 5. Bd3 {[%clk 0:02:55.3]}
5... Ngf6 {[%clk 0:02:56.7]} 6. Re1 {[%clk 0:02:54]} 6... g6 {[%clk 0:02:55]} 7.
c3 {[%clk 0:02:53.9]} 7... Bg7 {[%clk 0:02:54.7]} 8. Bc2 {[%clk 0:02:54.3]} 8...
O-O {[%clk 0:02:54.3]} 9. d4 {[%clk 0:02:54.9]} 9... e5 {[%clk 0:02:53.7]} 10.
dxe5 {[%clk 0:02:47]} 10... Nxe5 {[%clk 0:02:45.4]} 11. Nxe5 {[%clk 0:02:42.7]}
11... dxe5 {[%clk 0:02:46.3]} 12. a4 {[%clk 0:02:27.8]} 12... b6 {[%clk
0:02:41.1]} 13. Bg5 {[%clk 0:02:22.6]} 13... Qc7 {[%clk 0:02:36.2]} 14. Nd2
{[%clk 0:02:18.5]} 14... Nh5 {[%clk 0:02:32.8]} 15. Bb3 {[%clk 0:02:11.5]} 15...
Bb7 {[%clk 0:02:24.8]} 16. Qe2 {[%clk 0:01:54.5]} 16... Rfe8 {[%clk 0:02:08.2]}
17. Rad1 {[%clk 0:01:48.2]} 17... Nf4 {[%clk 0:02:02.6]} 18. Qf3 {[%clk
0:01:30.8]} 18... b5 {[%clk 0:01:53.8]} 19. axb5 {[%clk 0:01:18.9]} 19... axb5
{[%clk 0:01:54.7]} 20. Bxf4 {[%clk 0:00:59]} 20... exf4 {[%clk 0:01:55.6]} 21.
Bd5 {[%clk 0:00:59.3]} 21... Bxd5 {[%clk 0:01:44.1]} 22. exd5 {[%clk 0:01:00.2]}
22... f5 {[%clk 0:01:44.6]} 23. c4 {[%clk 0:00:49.3]} 23... b4 {[%clk
0:01:36.5]} 24. Nb3 {[%clk 0:00:35.5]} 24... Qd6 {[%clk 0:01:33.8]} 25. Re6
{[%clk 0:00:31.3]} 25... Qf8 {[%clk 0:01:32.5]} 26. Qxf4 {[%clk 0:00:23.8]}
26... Bxb2 {[%clk 0:01:30.1]} 27. Qc7 {[%clk 0:00:21.7]} 27... Bd4 {[%clk
0:01:22]} 28. Nxd4 {[%clk 0:00:19.2]} 28... cxd4 {[%clk 0:01:22.9]} 29. Qb6
{[%clk 0:00:19.8]} 29... d3 {[%clk 0:01:15]} 30. h4 {[%clk 0:00:17.5]} 30...
Reb8 {[%clk 0:01:02.2]} 31. Qd4 {[%clk 0:00:16.6]} 31... b3 {[%clk 0:01:02]} 32.
Qxd3 {[%clk 0:00:14.3]} 32... b2 {[%clk 0:01:01.7]} 33. Rb1 {[%clk 0:00:14.8]}
33... Ra1 {[%clk 0:01:00.5]} 34. Ree1 {[%clk 0:00:14.1]} 34... Qf6 {[%clk
0:00:54.2]} 35. d6 {[%clk 0:00:09.9]} 35... Rd8 {[%clk 0:00:46]} 36. c5 {[%clk
0:00:07.4]} 36... Kg7 {[%clk 0:00:43.5]} 37. Qb3 {[%clk 0:00:05.9]} 37... Qd4
{[%clk 0:00:38.1]} 38. Qb7+ {[%clk 0:00:05.6]} 38... Kh6 {[%clk 0:00:35.2]} 39.
Qe7 {[%clk 0:00:05.9]} 39... Rxb1 {[%clk 0:00:27.4]} 40. Rxb1 {[%clk 0:00:06.8]}
40... Ra8 {[%clk 0:00:27.4]} 41. Qg5+ {[%clk 0:00:06.4]} 41... Kg7 {[%clk
0:00:27.6]} 42. h5 {[%clk 0:00:06.1]} 42... Qxc5 {[%clk 0:00:17.5]} 43. h6+
{[%clk 0:00:05.9]} 43... Kg8 {[%clk 0:00:16.4]} 44. Rxb2 {[%clk 0:00:02.3]}
44... Qxd6 {[%clk 0:00:11.8]} 45. g3 {[%clk 0:00:02.5]} 45... Re8 {[%clk
0:00:10.3]} 46. Rb1 {[%clk 0:00:01.3]} 46... Qe7 {[%clk 0:00:09.7]} 0-1

[Event "*** Titled Tuesday Blitz"]
[Site "Chess.com"]
[Date "2020.05.19"]
[Round "3"]
[White "Hasangatin_Ramil"]
[Black "AnishGiri"]
[Result "0-1"]
[WhiteElo "2582"]
[BlackElo "3003"]
[TimeControl "180+1"]
[EndTime "12:29:32 PDT"]
[Termination "AnishGiri won by resignation"]

1. e4 {[%clk 0:03:00.9]} 1... c5 {[%clk 0:02:58.8]} 2. Nf3 {[%clk 0:02:51.2]}
2... e6 {[%clk 0:02:59.2]} 3. g3 {[%clk 0:02:48.9]} 3... Nc6 {[%clk 0:02:56.8]}
4. Bg2 {[%clk 0:02:48.2]} 4... Nf6 {[%clk 0:02:57.1]} 5. d3 {[%clk 0:02:48.2]}
5... d6 {[%clk 0:02:49.8]} 6. O-O {[%clk 0:02:47.5]} 6... Be7 {[%clk 0:02:50.3]}
7. Re1 {[%clk 0:02:46.2]} 7... O-O {[%clk 0:02:50.8]} 8. c3 {[%clk 0:02:46.3]}
8... e5 {[%clk 0:02:29.2]} 9. Nbd2 {[%clk 0:02:42.8]} 9... b5 {[%clk 0:02:27.5]}
10. a4 {[%clk 0:02:41.1]} 10... b4 {[%clk 0:02:27.8]} 11. c4 {[%clk 0:02:40.1]}
11... Ne8 {[%clk 0:02:24]} 12. Nf1 {[%clk 0:02:38.6]} 12... Nc7 {[%clk 0:02:18]}
13. Ne3 {[%clk 0:02:36.7]} 13... Ne6 {[%clk 0:02:17.4]} 14. Nd5 {[%clk
0:02:32.2]} 14... Ned4 {[%clk 0:02:17.8]} 15. Nxd4 {[%clk 0:02:22.4]} 15... Nxd4
{[%clk 0:02:18]} 16. Be3 {[%clk 0:02:21.5]} 16... Nc6 {[%clk 0:02:17.6]} 17. f4
{[%clk 0:02:09.7]} 17... Be6 {[%clk 0:02:17.1]} 18. f5 {[%clk 0:02:06]} 18...
Bxd5 {[%clk 0:02:16.8]} 19. exd5 {[%clk 0:02:01.2]} 19... Nd4 {[%clk 0:02:14.4]}
20. Bxd4 {[%clk 0:01:53.9]} 20... exd4 {[%clk 0:02:14.3]} 21. h4 {[%clk
0:01:46.3]} 21... Bf6 {[%clk 0:01:58.4]} 22. b3 {[%clk 0:01:39.7]} 22... Re8
{[%clk 0:01:52.2]} 23. Be4 {[%clk 0:01:29.6]} 23... Kf8 {[%clk 0:01:46.6]} 24.
Qg4 {[%clk 0:01:28.6]} 24... Re5 {[%clk 0:01:44]} 25. Re2 {[%clk 0:01:24.6]}
25... Qd7 {[%clk 0:01:27.8]} 26. Kg2 {[%clk 0:01:21.5]} 26... Rae8 {[%clk
0:01:28.2]} 27. Kh3 {[%clk 0:01:11.8]} 27... Ke7 {[%clk 0:01:10.4]} 28. Rf1
{[%clk 0:01:10.9]} 28... Kd8 {[%clk 0:01:07.3]} 29. Rf4 {[%clk 0:01:10.5]} 29...
Kc7 {[%clk 0:00:55.6]} 30. Kg2 {[%clk 0:01:09.5]} 30... Kb6 {[%clk 0:00:54.6]}
31. Kf1 {[%clk 0:01:09.4]} 31... a5 {[%clk 0:00:45.9]} 32. Ke1 {[%clk
0:01:09.4]} 32... Qe7 {[%clk 0:00:40.5]} 33. Kd1 {[%clk 0:01:07.2]} 33... Qf8
{[%clk 0:00:40.6]} 34. Qh5 {[%clk 0:00:52.3]} 34... Qg8 {[%clk 0:00:39.8]} 35.
Qg4 {[%clk 0:00:51.8]} 35... Qh8 {[%clk 0:00:39.2]} 36. Qh5 {[%clk 0:00:51.1]}
36... g6 {[%clk 0:00:35.3]} 37. Qf3 {[%clk 0:00:40.5]} 37... g5 {[%clk
0:00:32.1]} 38. Rg4 {[%clk 0:00:21.7]} 38... gxh4 {[%clk 0:00:16.7]} 39. gxh4
{[%clk 0:00:20.8]} 39... h5 {[%clk 0:00:17.4]} 40. Rgg2 {[%clk 0:00:15.2]} 40...
Qh6 {[%clk 0:00:13.7]} 41. Rg1 {[%clk 0:00:12.6]} 41... Rh8 {[%clk 0:00:11.9]}
42. Rh2 {[%clk 0:00:12.1]} 42... Ree8 {[%clk 0:00:11.2]} 43. Rgg2 {[%clk
0:00:11.5]} 43... Reg8 {[%clk 0:00:11.2]} 44. Rg3 {[%clk 0:00:06.3]} 44... Rxg3
{[%clk 0:00:10.1]} 45. Qxg3 {[%clk 0:00:06.2]} 45... Be5 {[%clk 0:00:11]} 46.
Qg2 {[%clk 0:00:06.3]} 46... Bxh2 {[%clk 0:00:10.8]} 47. Qxh2 {[%clk 0:00:07.2]}
47... Rg8 {[%clk 0:00:10.4]} 48. Ke2 {[%clk 0:00:03.5]} 48... Qe3+ {[%clk
0:00:09.4]} 49. Kf1 {[%clk 0:00:03.8]} 49... Rg3 {[%clk 0:00:09]} 50. Qf2 {[%clk
0:00:02.9]} 50... Qc1+ {[%clk 0:00:07.9]} 51. Ke2 {[%clk 0:00:02.6]} 51... Qc2+
{[%clk 0:00:07.5]} 0-1

[Event "*** Titled Tuesday Blitz"]
[Site "Chess.com"]
[Date "2020.05.19"]
[Round "3"]
[White "Sergey85Rodchenkov"]
[Black "Playgood28"]
[Result "1/2-1/2"]
[WhiteElo "2504"]
[BlackElo "2285"]
[TimeControl "180+1"]
[EndTime "12:29:32 PDT"]
[Termination "Game drawn by repetition"]

1. e4 {[%clk 0:03:00.9]} 1... e5 {[%clk 0:02:59]} 2. Nf3 {[%clk 0:03:00.6]} 2...
d6 {[%clk 0:02:58.5]} 3. d4 {[%clk 0:03:00]} 3... exd4 {[%clk 0:02:57.8]} 4.
Nxd4 {[%clk 0:02:59.5]} 4... Nf6 {[%clk 0:02:57.9]} 5. Nc3 {[%clk 0:02:59.6]}
5... Be7 {[%clk 0:02:58]} 6. Bc4 {[%clk 0:02:59.4]} 6... O-O {[%clk 0:02:57.5]}
7. O-O {[%clk 0:02:59.5]} 7... Nxe4 {[%clk 0:02:57.4]} 8. Nxe4 {[%clk
0:02:58.6]} 8... d5 {[%clk 0:02:57.3]} 9. Bd3 {[%clk 0:02:58.6]} 9... dxe4
{[%clk 0:02:57.8]} 10. Bxe4 {[%clk 0:02:59.1]} 10... Re8 {[%clk 0:02:58.1]} 11.
c3 {[%clk 0:02:57.2]} 11... Bf6 {[%clk 0:02:55.5]} 12. Qf3 {[%clk 0:02:49.4]}
12... c6 {[%clk 0:02:45.5]} 13. Nf5 {[%clk 0:02:42.2]} 13... Bxf5 {[%clk
0:02:39.3]} 14. Qxf5 {[%clk 0:02:37.2]} 14... g6 {[%clk 0:02:36.7]} 15. Qf3
{[%clk 0:02:37]} 15... Nd7 {[%clk 0:02:26.4]} 16. Bc2 {[%clk 0:02:32.8]} 16...
Ne5 {[%clk 0:02:23.6]} 17. Qg3 {[%clk 0:02:30.5]} 17... Bg7 {[%clk 0:02:21.5]}
18. Bg5 {[%clk 0:02:21.4]} 18... Qb6 {[%clk 0:02:16.9]} 19. Bb3 {[%clk
0:02:17.5]} 19... a5 {[%clk 0:02:08.2]} 20. Be3 {[%clk 0:01:58.8]} 20... c5
{[%clk 0:01:53]} 21. Rad1 {[%clk 0:01:51.2]} 21... a4 {[%clk 0:01:47.7]} 22. Bd5
{[%clk 0:01:48.5]} 22... Rad8 {[%clk 0:01:26.8]} 23. b4 {[%clk 0:01:37.7]} 23...
axb3 {[%clk 0:01:23.2]} 24. axb3 {[%clk 0:01:37.9]} 24... Qa5 {[%clk 0:01:12.3]}
25. c4 {[%clk 0:01:32.5]} 25... Qc3 {[%clk 0:01:03.8]} 26. Bg5 {[%clk
0:01:28.9]} 26... Qxg3 {[%clk 0:01:02.5]} 27. hxg3 {[%clk 0:01:27.9]} 27... Ra8
{[%clk 0:00:57.5]} 28. Rfe1 {[%clk 0:01:23.7]} 28... Nc6 {[%clk 0:00:55.8]} 29.
Bxc6 {[%clk 0:01:13.7]} 29... bxc6 {[%clk 0:00:53.4]} 30. Rxe8+ {[%clk
0:01:11.4]} 30... Rxe8 {[%clk 0:00:51.5]} 31. Be3 {[%clk 0:01:05.7]} 31... Rb8
{[%clk 0:00:49]} 32. Rd3 {[%clk 0:01:04.6]} 32... Bd4 {[%clk 0:00:45.4]} 33.
Bxd4 {[%clk 0:00:56.3]} 33... cxd4 {[%clk 0:00:45]} 34. Rxd4 {[%clk 0:00:53.9]}
34... Rxb3 {[%clk 0:00:45.2]} 35. Rd6 {[%clk 0:00:53.7]} 35... Rc3 {[%clk
0:00:44.7]} 36. Rxc6 {[%clk 0:00:53.5]} 36... Kg7 {[%clk 0:00:43.1]} 37. g4
{[%clk 0:00:51.8]} 37... h6 {[%clk 0:00:41.6]} 38. g3 {[%clk 0:00:51.6]} 38...
Rc2 {[%clk 0:00:40.7]} 39. Kg2 {[%clk 0:00:51.7]} 39... Rc3 {[%clk 0:00:41.1]}
40. Kf1 {[%clk 0:00:51.3]} 40... Rc2 {[%clk 0:00:39.8]} 41. Rc7 {[%clk
0:00:48.4]} 41... Kf6 {[%clk 0:00:38.2]} 42. c5 {[%clk 0:00:47.6]} 42... Ke6
{[%clk 0:00:32.3]} 43. Kg2 {[%clk 0:00:45.9]} 43... Rc3 {[%clk 0:00:30.2]} 44.
c6 {[%clk 0:00:44.4]} 44... Kf6 {[%clk 0:00:29.8]} 45. Rc8 {[%clk 0:00:43.7]}
45... Kg7 {[%clk 0:00:29.1]} 46. c7 {[%clk 0:00:43.3]} 46... Kh7 {[%clk
0:00:28.5]} 47. Kf1 {[%clk 0:00:42.2]} 47... Rc2 {[%clk 0:00:27.3]} 48. Ke1
{[%clk 0:00:40.3]} 48... Kg7 {[%clk 0:00:27.1]} 49. Kd1 {[%clk 0:00:40.3]} 49...
Rc6 {[%clk 0:00:27]} 50. Kd2 {[%clk 0:00:39.9]} 50... Rc5 {[%clk 0:00:26.9]} 51.
Kd3 {[%clk 0:00:39.8]} 51... Rc1 {[%clk 0:00:26.3]} 52. f4 {[%clk 0:00:38.9]}
52... Rc6 {[%clk 0:00:23.4]} 53. g5 {[%clk 0:00:37.1]} 53... hxg5 {[%clk
0:00:22.5]} 54. fxg5 {[%clk 0:00:37.5]} 54... Rc1 {[%clk 0:00:22.1]} 55. Kd4
{[%clk 0:00:37.4]} 55... Rd1+ {[%clk 0:00:21.9]} 56. Kc5 {[%clk 0:00:37.3]}
56... Rc1+ {[%clk 0:00:22]} 57. Kd6 {[%clk 0:00:37.1]} 57... Rd1+ {[%clk
0:00:22.1]} 58. Ke5 {[%clk 0:00:36.8]} 58... Re1+ {[%clk 0:00:22.1]} 59. Kf4
{[%clk 0:00:36.6]} 59... Rc1 {[%clk 0:00:22.3]} 60. Ke3 {[%clk 0:00:35.8]} 60...
Rc6 {[%clk 0:00:20.9]} 61. Kd3 {[%clk 0:00:34]} 61... Rc5 {[%clk 0:00:19.8]} 62.
g4 {[%clk 0:00:32.3]} 62... Rc6 {[%clk 0:00:19.4]} 63. Kd4 {[%clk 0:00:32]}
63... Rc1 {[%clk 0:00:19.2]} 64. Kd3 {[%clk 0:00:30.8]} 64... Rc6 {[%clk
0:00:18.2]} 65. Kd2 {[%clk 0:00:29.4]} 65... Rc5 {[%clk 0:00:17.9]} 66. Kd3
{[%clk 0:00:28]} 66... Rc6 {[%clk 0:00:17.8]} 1/2-1/2

[Event "*** Titled Tuesday Blitz"]
[Site "Chess.com"]
[Date "2020.05.19"]
[Round "3"]
[White "frankshar"]
[Black "MisiekZielony"]
[Result "1-0"]
[WhiteElo "2360"]
[BlackElo "2107"]
[TimeControl "180+1"]
[EndTime "12:29:32 PDT"]
[Termination "frankshar won on time"]

1. d4 {[%clk 0:02:52.1]} 1... d5 {[%clk 0:02:59.8]} 2. c4 {[%clk 0:02:50.5]}
2... c6 {[%clk 0:03:00]} 3. Nc3 {[%clk 0:02:48.7]} 3... Nf6 {[%clk 0:02:59.8]}
4. e3 {[%clk 0:02:49.1]} 4... g6 {[%clk 0:02:59.7]} 5. Nf3 {[%clk 0:02:46.3]}
5... Bg7 {[%clk 0:02:59.7]} 6. Be2 {[%clk 0:02:44.3]} 6... O-O {[%clk
0:02:58.8]} 7. O-O {[%clk 0:02:44.2]} 7... Bg4 {[%clk 0:02:57.7]} 8. cxd5 {[%clk
0:02:41.2]} 8... cxd5 {[%clk 0:02:57.1]} 9. h3 {[%clk 0:02:38.6]} 9... Bc8
{[%clk 0:02:40.1]} 10. Ne5 {[%clk 0:02:34.1]} 10... e6 {[%clk 0:02:39.7]} 11. b3
{[%clk 0:02:32.5]} 11... Re8 {[%clk 0:02:35.3]} 12. Ba3 {[%clk 0:02:21.6]} 12...
Bf8 {[%clk 0:02:34.9]} 13. Bxf8 {[%clk 0:02:19]} 13... Rxf8 {[%clk 0:02:34.6]}
14. Rc1 {[%clk 0:02:18.5]} 14... Bd7 {[%clk 0:02:11.9]} 15. f4 {[%clk
0:02:05.5]} 15... Ne8 {[%clk 0:01:50.2]} 16. Bd3 {[%clk 0:01:21.8]} 16... Nd6
{[%clk 0:01:38.8]} 17. g4 {[%clk 0:01:13.1]} 17... f6 {[%clk 0:01:12.8]} 18. Nf3
{[%clk 0:01:08]} 18... Nc6 {[%clk 0:01:05.5]} 19. Qe1 {[%clk 0:01:02.2]} 19...
f5 {[%clk 0:01:01.9]} 20. g5 {[%clk 0:01:00.6]} 20... Kg7 {[%clk 0:00:39.9]} 21.
Qh4 {[%clk 0:00:46.5]} 21... Nf7 {[%clk 0:00:37.6]} 22. Ne2 {[%clk 0:00:38.2]}
22... Nb4 {[%clk 0:00:34]} 23. Bb1 {[%clk 0:00:29.7]} 23... Bb5 {[%clk 0:00:31]}
24. Rce1 {[%clk 0:00:27.1]} 24... Bxe2 {[%clk 0:00:18.9]} 25. Rxe2 {[%clk
0:00:28]} 25... Rc8 {[%clk 0:00:18.7]} 26. Qg3 {[%clk 0:00:19.2]} 26... Qe7
{[%clk 0:00:12.6]} 27. h4 {[%clk 0:00:16.6]} 27... h5 {[%clk 0:00:09.7]} 28.
gxh6+ {[%clk 0:00:14.3]} 28... Kxh6 {[%clk 0:00:09]} 29. Rg2 {[%clk 0:00:09.9]}
29... Rg8 {[%clk 0:00:09]} 30. Ng5 {[%clk 0:00:05.2]} 30... Nxg5 {[%clk
0:00:08.4]} 31. fxg5+ {[%clk 0:00:04]} 31... Kg7 {[%clk 0:00:08.4]} 32. Qe5+
{[%clk 0:00:03.9]} 32... Kf7 {[%clk 0:00:08.4]} 33. h5 {[%clk 0:00:04.3]} 33...
gxh5 {[%clk 0:00:08]} 34. Bxf5 {[%clk 0:00:03.8]} 34... exf5 {[%clk 0:00:04]}
35. Qxf5+ {[%clk 0:00:03.9]} 35... Kg7 {[%clk 0:00:03.4]} 36. g6 {[%clk
0:00:03.8]} 36... Rcf8 {[%clk 0:00:02.4]} 37. Qxh5 {[%clk 0:00:03.7]} 37...
Rxf1+ {[%clk 0:00:02.3]} 38. Kxf1 {[%clk 0:00:04]} 38... Rh8 {[%clk 0:00:01.9]}
39. Qg4 {[%clk 0:00:02.3]} 39... Qf6+ {[%clk 0:00:01.8]} 40. Ke2 {[%clk
0:00:01.8]} 40... Qe7 {[%clk 0:00:01.5]} 41. Qf5 {[%clk 0:00:01.5]} 1-0

[Event "*** Titled Tuesday Blitz"]
[Site "Chess.com"]
[Date "2020.05.19"]
[Round "3"]
[White "Zubrrr"]
[Black "Oleksandr_Bortnyk"]
[Result "1-0"]
[WhiteElo "2672"]
[BlackElo "2980"]
[TimeControl "180+1"]
[EndTime "12:29:33 PDT"]
[Termination "Zubrrr won by checkmate"]

1. d4 {[%clk 0:02:57.9]} 1... d6 {[%clk 0:02:59.8]} 2. Nf3 {[%clk 0:02:57.7]}
2... Nf6 {[%clk 0:02:59.7]} 3. g3 {[%clk 0:02:52.5]} 3... g6 {[%clk 0:03:00]} 4.
Bg2 {[%clk 0:02:52.9]} 4... Bg7 {[%clk 0:03:00.9]} 5. O-O {[%clk 0:02:53.2]}
5... O-O {[%clk 0:03:01.8]} 6. c4 {[%clk 0:02:53.8]} 6... Bf5 {[%clk 0:03:01.9]}
7. Nc3 {[%clk 0:02:53.9]} 7... Ne4 {[%clk 0:03:02.4]} 8. Nh4 {[%clk 0:02:44.2]}
8... Nxc3 {[%clk 0:03:02.4]} 9. bxc3 {[%clk 0:02:45.1]} 9... Bc8 {[%clk
0:03:03.1]} 10. f4 {[%clk 0:02:42]} 10... c6 {[%clk 0:01:47.6]} 11. f5 {[%clk
0:02:12.7]} 11... Qa5 {[%clk 0:01:44.7]} 12. Qd3 {[%clk 0:02:03.2]} 12... Nd7
{[%clk 0:01:37.6]} 13. Bg5 {[%clk 0:01:59.9]} 13... Nf6 {[%clk 0:01:31.4]} 14.
e4 {[%clk 0:01:53.1]} 14... e5 {[%clk 0:00:36.5]} 15. c5 {[%clk 0:01:23.7]}
15... exd4 {[%clk 0:00:28.9]} 16. cxd4 {[%clk 0:01:22.6]} 16... dxc5 {[%clk
0:00:28.3]} 17. e5 {[%clk 0:01:22.6]} 17... Nd5 {[%clk 0:00:23.6]} 18. f6 {[%clk
0:00:54.9]} 18... Bh8 {[%clk 0:00:23.6]} 19. Kh1 {[%clk 0:00:35.8]} 19... Be6
{[%clk 0:00:23]} 20. Nf3 {[%clk 0:00:30.4]} 20... Rfd8 {[%clk 0:00:19.8]} 21.
Bd2 {[%clk 0:00:29.6]} 21... Qb5 {[%clk 0:00:13.3]} 22. Qe4 {[%clk 0:00:28.8]}
22... cxd4 {[%clk 0:00:09.4]} 23. Qh4 {[%clk 0:00:28.1]} 23... h5 {[%clk
0:00:08.3]} 24. Nxd4 {[%clk 0:00:23.5]} 24... Qa4 {[%clk 0:00:08.5]} 25. Nxe6
{[%clk 0:00:12.7]} 25... Qxh4 {[%clk 0:00:09.4]} 26. gxh4 {[%clk 0:00:12.7]}
26... fxe6 {[%clk 0:00:10.3]} 27. Be4 {[%clk 0:00:12.1]} 27... Kf7 {[%clk
0:00:10]} 28. Rg1 {[%clk 0:00:11.3]} 28... Rg8 {[%clk 0:00:08.9]} 29. Bg5 {[%clk
0:00:11.4]} 29... Rad8 {[%clk 0:00:08.3]} 30. Rac1 {[%clk 0:00:11.3]} 30... Rd7
{[%clk 0:00:06.9]} 31. Rg3 {[%clk 0:00:11.3]} 31... Nb4 {[%clk 0:00:04.1]} 32.
a3 {[%clk 0:00:10.5]} 32... Rd4 {[%clk 0:00:04.5]} 33. Bb1 {[%clk 0:00:09.3]}
33... Nd5 {[%clk 0:00:04.3]} 34. Rcg1 {[%clk 0:00:09.4]} 34... c5 {[%clk
0:00:02.4]} 35. Bc1 {[%clk 0:00:06.8]} 35... Rxh4 {[%clk 0:00:01.7]} 36. Bxg6+
{[%clk 0:00:06.6]} 36... Rxg6 {[%clk 0:00:02.6]} 37. Rxg6 {[%clk 0:00:07.2]}
37... c4 {[%clk 0:00:03]} 38. Rh6 {[%clk 0:00:07.5]} 38... Bxf6 {[%clk
0:00:03.2]} 39. exf6 {[%clk 0:00:07.8]} 39... Rg4 {[%clk 0:00:02.2]} 40. Rxg4
{[%clk 0:00:07.7]} 40... hxg4 {[%clk 0:00:03.1]} 41. Bg5 {[%clk 0:00:08]} 41...
c3 {[%clk 0:00:03]} 42. Rh7+ {[%clk 0:00:08.2]} 42... Kg8 {[%clk 0:00:02.1]} 43.
f7+ {[%clk 0:00:07.3]} 43... Kxh7 {[%clk 0:00:03]} 44. f8=Q {[%clk 0:00:07.4]}
44... Kg6 {[%clk 0:00:03.3]} 45. Qh6+ {[%clk 0:00:07.1]} 45... Kf5 {[%clk
0:00:03.9]} 46. Bc1 {[%clk 0:00:07.5]} 46... Ke4 {[%clk 0:00:04.3]} 47. Qg6+
{[%clk 0:00:07.3]} 47... Kd4 {[%clk 0:00:05]} 48. Qxg4+ {[%clk 0:00:07.4]} 48...
Kd3 {[%clk 0:00:05.7]} 49. Qxe6 {[%clk 0:00:07.5]} 49... Nb6 {[%clk 0:00:05.5]}
50. Bg5 {[%clk 0:00:06.2]} 50... Nc4 {[%clk 0:00:04.6]} 51. Qd5+ {[%clk
0:00:05.8]} 51... Kc2 {[%clk 0:00:05.3]} 52. Qxc4 {[%clk 0:00:06.7]} 52... b5
{[%clk 0:00:05.9]} 53. Qxb5 {[%clk 0:00:06.9]} 53... a6 {[%clk 0:00:06.8]} 54.
Qxa6 {[%clk 0:00:07.3]} 54... Kb2 {[%clk 0:00:07.7]} 55. Qc4 {[%clk 0:00:07.3]}
55... c2 {[%clk 0:00:08.6]} 56. a4 {[%clk 0:00:07.5]} 56... Ka1 {[%clk
0:00:09.5]} 57. Qc3+ {[%clk 0:00:07.3]} 57... Kb1 {[%clk 0:00:10]} 58. Qb3+
{[%clk 0:00:07.1]} 58... Ka1 {[%clk 0:00:10.3]} 59. Bf6# {[%clk 0:00:07.7]} 1-0